bitfinex/quotes_ETHUSD_20251011
["timestamp","ask_amount","ask_price","bid_price","bid_amount"]
[1760189564156,13.04894989,3809.6,3801.6,0.6336]
[1760189564157,2.62675327,3807.0,3801.6,0.6336]
[1760189564357,2.62696075,3806.7,3804.2,2.62866415]
[1760189564535,13.04894989,3809.6,3801.3,0.6336]
[1760189564735,13.04894989,3809.6,3798.2,0.99999999]
[1760189564736,2.62508531,3809.4,3801.6,1.92]
[1760189564943,2.62508531,3809.4,3804.5,2.62845787]
[1760189564944,2.62549884,3808.8,3804.5,2.62845787]
[1760189565253,13.04894989,3809.6,3802.4,1.92]
[1760189565437,2.62668381,3807.1,3804.6,2.62838353]
[1760189565638,0.41195528,3807.8,3803.8,2.62892956]
[1760189565865,0.41195528,3807.8,3803.9,2.65516968]
[1760189566165,2.62660124,3807.3,3803.9,0.72041888]
[1760189566378,2.62632911,3807.6,3804.1,2.62874267]
[1760189566544,2.62658523,3807.3,3804.9,2.62818996]
[1760189566864,0.6336,3806.5,3802.8,1.92]
[1760189567062,2.627169,3806.4,3804.4,2.62848269]
[1760189567265,1.92,3807.5,3804.7,2.62830698]
[1760189567469,14.38334266,3809.6,3803.3,2.62923769]
[1760189567682,2.62662524,3807.2,3801.8,0.6336]
[1760189567968,2.62708999,3806.5,3802.7,2.62971046]
[1760189568266,0.6336,3806.1,3804.3,2.62859441]
[1760189568467,0.6336,3805.6,3801.0,2.6308866]
[1760189568768,2.62769082,3805.7,3801.1,0.02630817]
[1760189568769,0.6336,3805.7,3801.1,0.02630817]
[1760189568975,2.62698782,3806.7,3804.1,2.6286992]
[1760189569157,1.92,3807.4,3803.2,2.62936474]
[1760189569356,0.001,3809.5,3805.0,2.62805454]
[1760189569544,0.001,3809.5,3803.6,2.62902626]
[1760189569745,0.41201683,3808.6,3801.2,0.26591948]
[1760189569945,0.41201683,3808.6,3800.4,2.63130143]
[1760189569946,2.5536,3807.8,3800.4,2.63130143]
[1760189570148,2.5536,3807.8,3799.2,0.26321265]
[1760189570345,2.5536,3807.8,3801.3,2.63067897]
[1760189570346,0.6336,3804.9,3801.3,2.63067897]
[1760189570559,1.92,3806.0,3803.1,2.62942975]
[1760189570760,2.62625732,3807.7,3800.3,0.6336]
[1760189570935,0.1312,3802.6,3802.5,4.54984878]
[1760189571140,0.41211519,3806.4,3802.6,1.92]
[1760189571359,0.41211519,3806.4,3803.8,1.92]
[1760189571568,2.62573762,3808.5,3804.3,2.62859707]
[1760189571569,2.62687563,3806.9,3804.3,2.62859707]
[1760189571735,0.41199213,3807.7,3802.2,1.92]
[1760189571953,0.41199213,3807.7,3802.3,0.02629987]
[1760189571954,0.6336,3807.4,3802.3,0.02629987]
[1760189572150,0.41199213,3807.7,3803.4,2.62922045]
[1760189572151,0.6336,3805.0,3803.4,2.62922045]
[1760189572337,0.6336,3806.4,3802.6,1.92]
[1760189572540,0.6336,3807.6,3804.1,2.6287374]
[1760189572865,13.04894989,3810.1,3801.7,0.6336]
[1760189573059,0.6336,3809.6,3801.8,0.02630333]
[1760189573261,0.6336,3806.7,3804.1,2.6286787]
[1760189573572,13.04894989,3810.1,3802.7,1.92]
[1760189573777,13.04894989,3810.1,3802.2,2.63004963]
[1760189573778,0.4119789,3807.3,3802.2,2.63004963]
[1760189573981,13.04894989,3810.1,3800.5,2.63322692]
[1760189573982,1.37593399,3809.5,3800.5,2.63322692]
[1760189574281,2.62798486,3805.2,3803.1,2.62939396]
[1760189574487,0.6336,3806.0,3801.4,4.55060977]
[1760189574488,0.6336,3805.9,3801.9,1.92]
[1760189574658,0.6336,3805.9,3801.4,2.63060977]
[1760189574659,0.6336,3805.9,3802.0,0.21830194]
[1760189574859,0.6336,3805.7,3801.3,2.63067897]
[1760189575379,0.6336,3805.7,3800.5,0.002]
[1760189575547,2.62852255,3804.5,3801.1,2.63081739]
[1760189575755,2.5536,3804.6,3802.7,2.62970983]
[1760189575977,2.5536,3804.6,3800.5,0.002]
[1760189575978,0.6336,3804.6,3800.5,0.002]
[1760189576291,0.6336,3805.0,3801.0,0.6336]
[1760189576592,13.04994989,3809.9,3803.7,2.62895363]
[1760189576796,1.92,3806.2,3801.8,2.63032944]
[1760189577086,0.41213695,3808.5,3801.0,2.63084644]
[1760189577087,1.92,3806.0,3804.0,2.62875609]
[1760189577258,1.92,3807.3,3802.5,1.92]
[1760189577463,0.41213695,3808.5,3802.7,1.92]
[1760189577655,2.62682015,3806.9,3803.0,1.92]
[1760189577855,1.92,3806.6,3804.8,2.62819402]
[1760189578057,2.62713636,3806.5,3803.5,2.62915735]
[1760189578254,2.62746066,3806.0,3804.0,2.62875922]
[1760189578554,0.6336,3805.9,3802.9,1.92]
[1760189578893,2.6272879,3806.3,3803.2,1.92]
[1760189579068,2.62607607,3808.0,3803.4,1.92]
[1760189579069,0.6336,3807.2,3803.4,1.92]
[1760189579384,0.6336,3805.4,3800.7,2.63103782]
[1760189579572,0.41205705,3807.7,3800.0,0.33350185]
[1760189579573,2.62743037,3806.0,3800.0,0.33350185]
[1760189579774,0.6336,3806.1,3799.2,0.26321265]
[1760189579775,0.6336,3805.4,3802.9,2.62956059]
[1760189579975,0.6336,3805.0,3801.2,2.63074818]
[1760189580188,1.92,3805.9,3801.3,0.26307482]
[1760189580366,0.6336,3804.9,3801.4,2.65691586]
[1760189580686,1.92,3806.4,3801.0,2.6308866]
[1760189580888,1.27253113,3809.7,3801.3,0.6336]
[1760189580889,14.32148102,3809.7,3801.3,0.6336]
[1760189581183,14.32148102,3809.7,3803.8,0.1312]
[1760189581184,0.1312,3804.4,3803.8,0.1312]
[1760189581486,14.32148102,3809.7,3804.2,2.62867357]
[1760189581487,0.1312,3804.3,3804.2,2.62867357]
[1760189581687,1.27253113,3809.7,3804.2,2.0512]
[1760189581891,1.27253113,3809.7,3804.6,2.6283312]
[1760189582055,1.27253113,3809.7,3803.3,2.62925298]
[1760189582056,0.1,3806.0,3802.6,1.92]
[1760189582252,0.1,3806.0,3800.2,0.2625]
[1760189582253,0.1312,3804.1,3803.4,0.1312]
[1760189582555,0.1312,3803.5,3803.4,4.54922648]
[1760189582752,0.1312,3803.8,3803.6,2.62902816]
[1760189582987,0.1312,3803.5,3803.4,2.62922648]
[1760189583156,0.1,3806.0,3803.5,2.62915735]
[1760189583354,0.1,3806.0,3803.6,0.02629088]
[1760189583567,0.1,3806.0,3803.8,1.92]
[1760189583754,0.1,3806.0,3803.9,0.0262888]
[1760189584090,0.1,3806.0,3805.9,2.6274994]
[1760189584612,0.001,3806.4,3806.3,2.62722328]
[1760189585082,0.001,3806.4,3806.3,2.65349551]
[1760189585260,0.001,3806.4,3806.3,2.62722328]
[1760189585863,0.001,3806.4,3803.7,2.62897214]
[1760189586065,0.001,3806.4,3806.0,2.62742822]
[1760189586392,0.001,3806.4,3804.9,2.62818996]
[1760189586609,0.001,3806.4,3805.1,2.62799602]
[1760189586794,0.001,3806.4,3803.8,0.89649721]
[1760189586795,0.001,3806.4,3804.1,1.92]
[1760189587102,0.001,3806.4,3801.8,2.630333]
[1760189587307,0.001,3806.4,3800.9,0.002]
[1760189587308,0.001,3806.4,3802.0,2.63019463]
[1760189587484,0.001,3806.4,3804.2,2.6286598]
[1760189587681,0.6336,3806.1,3804.1,2.62872347]
[1760189587915,0.6336,3806.2,3804.5,2.6284617]
[1760189588085,0.001,3806.4,3804.3,0.02628604]
[1760189588411,0.6336,3805.9,3799.6,14.35040766]
[1760189588609,1.921,3806.4,3799.7,0.52872765]
[1760189588773,0.6336,3805.7,3801.0,2.63087448]
[1760189588973,0.001,3806.4,3802.4,2.62988822]
[1760189589204,0.6346,3806.4,3801.6,2.63047138]
[1760189589425,0.6336,3805.7,3804.1,2.62873672]
[1760189589575,0.001,3806.4,3803.0,1.92]
[1760189589774,0.001,3806.4,3803.1,0.19462957]
[1760189590289,0.001,3806.4,3804.3,2.62856585]
[1760189590489,0.001,3806.4,3803.3,1.92]
[1760189590700,0.001,3806.4,3803.5,1.92]
[1760189590868,2.62722328,3806.3,3803.5,2.62915735]
[1760189591074,2.62730776,3806.2,3803.7,2.62901911]
[1760189591269,0.001,3806.4,3803.7,2.62901911]
[1760189591469,0.001,3806.4,3803.8,1.93314158]
[1760189591705,0.001,3806.4,3804.0,1.92]
[1760189591880,0.001,3806.4,3805.9,2.62743569]
[1760189592084,0.001,3806.4,3806.3,2.62722328]
[1760189592284,0.001,3806.4,3804.7,2.62832812]
[1760189592485,0.001,3806.4,3806.3,2.62722328]
[1760189593010,0.001,3806.4,3804.4,2.62853372]
[1760189593217,0.001,3806.4,3803.5,0.6336]
[1760189593218,0.1312,3806.1,3804.9,0.02628189]
[1760189593418,0.001,3806.4,3805.2,2.62794326]
[1760189593579,0.001,3806.4,3806.3,2.62722328]
[1760189595129,0.001,3806.4,3806.3,2.65349551]
[1760189595337,0.001,3806.4,3806.3,4.57349551]
[1760189595847,0.001,3806.4,3806.3,4.54722328]
[1760189596148,0.001,3806.4,3806.3,4.57349551]
[1760189596496,0.001,3809.5,3806.1,0.6336]
[1760189596806,0.001,3809.5,3806.8,2.62685722]
[1760189597006,0.001,3809.5,3808.8,2.62548934]
[1760189597208,0.001,3809.5,3807.7,2.62625732]
[1760189597426,0.001,3809.9,3809.8,2.6248097]
[1760189597617,0.001,3809.9,3809.8,0.4447]
[1760189597930,0.001,3809.9,3808.8,0.4447]
[1760189598225,0.001,3809.9,3808.1,0.2335]
[1760189598401,0.001,3809.9,3808.6,0.4447]
[1760189599135,2.62516009,3809.3,3808.1,0.2335]
[1760189599435,2.62543291,3808.9,3807.2,3.30478463]
[1760189599594,0.6336,3809.6,3807.2,0.6782]
[1760189599595,2.62560063,3808.7,3807.2,0.6782]
[1760189599903,1.92,3809.6,3806.1,2.62733512]
[1760189599904,1.921,3809.9,3806.5,0.2335]
[1760189600103,0.001,3809.9,3807.3,0.4447]
[1760189600296,0.001,3809.9,3808.1,2.62593106]
[1760189600496,0.001,3809.9,3807.5,0.02626395]
[1760189600697,0.001,3809.9,3808.6,2.62562736]
[1760189600999,0.001,3809.9,3808.8,2.62549884]
[1760189601330,0.001,3809.9,3808.7,0.6782]
[1760189602140,0.001,3809.9,3808.7,0.2335]
[1760189602298,0.001,3809.9,3808.8,0.4447]
[1760189602624,0.001,3810.3,3808.8,0.4447]
[1760189602843,0.001,3810.3,3810.1,2.62455066]
[1760189603002,0.001,3810.3,3810.2,0.2335]
[1760189603324,0.001,3810.3,3810.2,3.30273414]
[1760189603526,0.001,3810.3,3810.2,0.6782]
[1760189603830,0.001,3810.3,3810.2,0.4447]
[1760189604136,0.001,3810.3,3809.4,0.4447]
[1760189605413,0.001,3810.3,3809.5,2.6250164]
[1760189605640,0.001,3810.3,3809.4,0.4447]
[1760189606134,0.001,3810.3,3809.4,3.06976137]
[1760189606305,0.001,3810.3,3809.6,2.62490869]
[1760189606499,0.001,3810.3,3809.5,0.4447]
[1760189607147,1.92,3809.9,3808.8,0.4447]
[1760189607440,2.62475315,3809.9,3808.8,0.4447]
[1760189607611,0.6336,3810.2,3808.8,0.4447]
[1760189608332,0.6336,3810.2,3808.9,2.62542861]
[1760189608506,0.001,3810.3,3809.0,3.07000041]
[1760189608705,0.001,3810.3,3809.0,0.4447]
[1760189608902,0.001,3810.3,3809.1,0.4447]
[1760189609118,0.001,3810.3,3809.2,0.02625223]
[1760189609334,0.001,3810.3,3809.1,0.4447]
[1760189610636,0.001,3810.3,3809.2,0.4447]
[1760189610964,0.001,3810.3,3808.2,2.62584992]
[1760189610965,0.001,3810.3,3808.1,0.2335]
[1760189611120,0.6336,3810.1,3807.6,0.4447]
[1760189611483,2.62541659,3809.0,3807.6,0.4447]
[1760189611624,0.6336,3808.9,3807.6,0.4447]
[1760189611958,0.6336,3808.7,3807.6,0.4447]
[1760189612160,0.6336,3808.8,3807.6,0.4447]
[1760189612320,0.6336,3808.8,3806.7,0.4447]
[1760189612723,0.1003,3809.6,3806.7,0.4447]
[1760189612922,0.6336,3809.5,3806.7,0.4447]
[1760189613123,0.6336,3809.5,3807.2,2.62658517]
[1760189613424,0.6336,3808.7,3807.3,0.4447]
[1760189613623,0.41175471,3809.9,3807.3,0.4447]
[1760189613934,0.6336,3809.1,3807.3,0.4447]
[1760189614132,0.6336,3809.0,3807.3,0.4447]
[1760189614336,0.1645,3809.8,3807.3,0.4447]
[1760189614337,2.5536,3808.7,3807.3,0.4447]
[1760189614651,2.62551454,3808.8,3807.3,0.4447]
[1760189614652,0.6336,3808.8,3807.3,0.4447]
[1760189615046,2.5536,3809.0,3807.3,0.4447]
[1760189615355,0.6336,3809.2,3807.3,0.4447]
[1760189615356,0.6336,3809.2,3807.5,2.62637814]
[1760189615653,0.1025,3810.3,3808.0,2.62598206]
[1760189615654,2.62490786,3809.7,3808.0,2.62598206]
[1760189615857,0.001,3810.3,3808.1,0.6782]
[1760189616223,0.41166942,3810.6,3810.2,0.2335]
[1760189616419,0.001,3810.7,3808.7,2.62556477]
[1760189616626,0.1312,3809.6,3809.2,2.62521849]
[1760189616824,0.1312,3809.6,3808.3,1.92]
[1760189616825,0.001,3810.7,3809.3,0.4447]
[1760189617027,2.62432751,3810.5,3809.3,0.4447]
[1760189617254,0.001,3810.7,3809.3,0.4447]
[1760189617630,2.62426746,3810.6,3809.3,0.4447]
[1760189617831,0.001,3810.7,3809.3,0.4447]
[1760189618246,2.62425864,3810.6,3809.3,0.4447]
[1760189618457,0.001,3810.7,3809.3,0.4447]
[1760189618659,2.62453753,3810.2,3809.3,0.4447]
[1760189618926,2.62453753,3810.2,3808.1,0.2335]
[1760189618927,0.1312,3809.3,3808.6,0.4447]
[1760189619235,2.62521351,3810.7,3808.6,0.4447]
[1760189619236,0.001,3810.7,3808.7,0.01775913]
[1760189619460,0.001,3810.7,3808.8,0.4447]
[1760189619641,0.001,3810.7,3809.6,2.62494135]
[1760189619847,0.001,3810.7,3809.2,2.62520974]
[1760189620028,0.001,3810.7,3808.8,0.4447]
[1760189620229,2.62448065,3810.3,3808.8,3.07019729]
[1760189620432,0.001,3810.7,3808.8,0.4447]
[1760189620639,1.92,3810.5,3809.0,2.62530094]
[1760189620838,1.92,3810.5,3809.1,3.06997015]
[1760189621158,0.001,3810.7,3809.2,0.4447]
[1760189621363,0.001,3810.7,3809.9,2.62468515]
[1760189621570,0.001,3810.7,3810.1,2.62454114]
[1760189621773,0.001,3810.7,3810.0,0.4447]
[1760189621969,0.001,3810.7,3808.2,2.6259125]
[1760189622126,0.001,3810.7,3809.4,0.4447]
[1760189622461,0.001,3810.5,3808.6,0.002]
[1760189622665,0.001,3810.5,3808.7,0.4447]
[1760189623063,0.6336,3809.7,3808.7,0.4447]
[1760189623369,2.62491123,3809.7,3808.7,0.4447]
[1760189623569,0.6336,3809.6,3808.7,0.4447]
[1760189623867,0.6336,3809.7,3808.7,0.4447]
[1760189624076,0.6336,3810.3,3808.7,0.4447]
[1760189624283,0.6336,3809.7,3808.6,0.002]
[1760189624484,0.001,3810.5,3808.6,0.002]
[1760189624485,0.6336,3809.2,3808.6,0.002]
[1760189624985,2.6244653,3810.3,3808.6,0.002]
[1760189624986,0.6336,3809.6,3808.6,0.002]
[1760189625148,0.6346,3810.5,3808.6,0.002]
[1760189625349,0.001,3810.5,3808.6,0.002]
[1760189625562,0.001,3810.5,3808.8,2.62549355]
[1760189625765,0.001,3810.5,3808.9,0.4607]
[1760189626279,0.001,3810.5,3809.0,2.6253019]
[1760189626578,2.62464524,3810.1,3808.9,0.4607]
[1760189626754,0.6336,3810.0,3808.9,0.4607]
[1760189626948,0.6336,3809.7,3808.9,0.4607]
[1760189627183,1.92,3810.3,3808.9,0.4607]
[1760189627184,0.6336,3810.3,3808.9,0.4607]
[1760189627480,0.001,3810.5,3808.9,0.76952568]
[1760189627655,0.001,3810.5,3809.0,0.4607]
[1760189627863,0.001,3810.5,3809.2,2.62521831]
[1760189628366,0.001,3810.5,3809.0,3.08605601]
[1760189628367,2.62446302,3810.4,3809.0,0.4607]
[1760189628569,2.62482409,3809.8,3809.0,0.4607]
[1760189628749,2.5536,3810.3,3808.6,0.002]
[1760189628951,0.001,3810.5,3808.7,0.4607]
[1760189629154,0.6336,3810.1,3808.7,3.08625237]
[1760189629388,0.6336,3810.1,3809.0,2.62535696]
[1760189629593,2.62534957,3810.5,3808.8,0.4607]
[1760189629594,0.001,3810.5,3808.8,0.4607]
[1760189630088,0.1312,3808.8,3808.6,2.62762575]
[1760189630256,0.6346,3810.5,3808.6,0.002]
[1760189630458,0.001,3810.5,3808.6,0.002]
[1760189630694,2.5536,3810.1,3808.8,2.62549349]
[1760189630874,2.5536,3810.1,3808.9,0.4607]
[1760189630875,0.6336,3809.9,3808.9,0.4607]
[1760189631573,0.6336,3810.1,3808.9,0.4607]
[1760189631774,0.001,3810.5,3808.9,0.4607]
[1760189631976,0.6346,3810.5,3808.9,0.4607]
[1760189632398,0.001,3810.5,3808.9,0.4607]
[1760189632896,0.6336,3809.8,3808.9,0.4607]
[1760189633100,0.6336,3809.8,3808.6,0.002]
[1760189633298,2.62551165,3808.8,3808.6,0.002]
[1760189633462,0.2612,3809.8,3808.6,0.002]
[1760189633463,0.6336,3809.5,3808.6,0.002]
[1760189633663,0.001,3810.7,3808.7,0.6888]
[1760189633877,0.099,3810.6,3808.7,0.6888]
[1760189634077,0.6336,3809.9,3808.7,0.6888]
[1760189634400,0.001,3810.7,3808.8,0.4607]
[1760189634997,0.001,3810.7,3808.9,2.6516842]
[1760189635330,0.001,3810.7,3809.7,2.62482211]
[1760189635477,0.001,3810.7,3809.1,2.62527232]
[1760189635679,0.001,3810.7,3809.4,2.62508151]
[1760189635878,0.001,3810.7,3809.2,2.62521908]
[1760189635879,0.001,3810.7,3809.6,2.62492599]
[1760189636099,0.001,3810.7,3809.3,0.4607]
[1760189636891,0.1312,3809.3,3808.7,0.6888]
[1760189637090,0.1312,3808.8,3808.7,0.6888]
[1760189637303,0.1312,3808.8,3808.7,0.4607]
[1760189637912,0.1312,3808.8,3808.3,0.002]
[1760189638070,0.6336,3809.9,3808.3,0.002]
[1760189638272,0.6336,3809.7,3808.3,0.002]
[1760189639092,2.5536,3809.7,3808.3,0.002]
[1760189639294,3.25916777,3808.7,3808.3,0.002]
[1760189639494,0.6336,3808.7,3808.3,0.002]
[1760189640001,0.6336,3808.9,3808.3,0.002]
[1760189640200,1.92,3809.7,3808.3,0.002]
[1760189640399,0.6336,3810.3,3808.3,0.002]
[1760189640597,0.6336,3809.7,3808.3,0.002]
[1760189641097,0.6336,3809.5,3808.3,0.002]
[1760189641424,3.25916777,3808.7,3808.3,0.002]
[1760189641716,2.5536,3808.7,3808.3,0.002]
[1760189642127,2.62505419,3809.5,3808.3,0.002]
[1760189642128,0.1002,3810.0,3808.3,0.002]
[1760189642424,0.1018,3810.5,3808.6,0.4627]
[1760189642598,0.001,3810.5,3808.6,0.4627]
[1760189642805,0.001,3810.5,3808.7,2.62556777]
[1760189642993,0.001,3810.5,3808.7,0.30882678]
[1760189643201,0.001,3810.5,3808.6,0.4627]
[1760189643202,0.001,3810.5,3808.8,3.08613892]
[1760189643488,0.001,3810.5,3808.9,0.02625429]
[1760189643800,0.001,3810.5,3809.0,0.4607]
[1760189644014,0.001,3810.5,3809.5,2.62498374]
[1760189644216,0.001,3810.5,3810.0,2.62467191]
[1760189644736,0.001,3810.5,3810.0,3.08537191]
[1760189645792,0.001,3810.5,3810.0,3.65901065]
[1760189645991,0.001,3810.5,3810.0,5.57901065]
[1760189646430,0.001,3810.5,3810.0,5.00537191]
[1760189646590,0.001,3810.5,3810.0,0.4607]
[1760189647026,0.001,3810.5,3810.0,3.08537191]
[1760189647232,0.001,3810.5,3810.0,0.4607]
[1760189647442,0.001,3810.5,3809.3,0.4607]
[1760189647601,0.6346,3810.5,3809.3,0.4607]
[1760189647800,0.001,3810.5,3809.3,0.4607]
[1760189648426,0.001,3810.5,3809.4,2.62506658]
[1760189648605,0.001,3810.5,3809.4,2.62508126]
[1760189648792,0.001,3810.5,3809.8,2.62479636]
[1760189648988,0.001,3810.5,3809.9,2.62473573]
[1760189649333,0.001,3810.5,3809.7,0.4607]
[1760189649491,0.001,3810.5,3810.0,2.62467191]
[1760189649690,0.001,3810.5,3809.7,0.4607]
[1760189649892,0.1312,3809.8,3809.7,2.62487859]
[1760189650307,0.1312,3809.8,3809.5,2.62501287]
[1760189650524,0.1312,3809.8,3809.7,0.4607]
[1760189650730,0.001,3810.5,3809.7,0.4607]
[1760189650903,0.001,3810.5,3809.8,0.4607]
[1760189651434,0.001,3810.5,3809.3,2.6251499]
[1760189651435,0.1312,3809.8,3809.2,2.62521061]
[1760189651733,0.001,3810.5,3808.6,0.1332]
[1760189651734,0.001,3810.5,3809.4,2.625068]
[1760189651927,0.001,3810.5,3809.3,2.62514983]
[1760189652220,0.001,3810.5,3809.4,0.4607]
[1760189652425,0.001,3810.5,3809.4,3.08577222]
[1760189652592,0.001,3810.5,3809.4,0.4607]
[1760189652797,0.1312,3809.4,3809.3,2.62515422]
[1760189653125,0.1312,3809.4,3809.2,2.62521777]
[1760189653312,0.001,3810.5,3809.3,0.4439]
[1760189653517,2.6248097,3809.8,3808.6,0.4459]
[1760189653827,0.6336,3809.2,3808.6,0.002]
[1760189654326,0.0997,3810.2,3808.6,0.4459]
[1760189654327,0.6336,3809.8,3808.6,0.4459]
[1760189654523,0.6346,3810.1,3808.6,0.4459]
[1760189655215,1.92,3810.0,3808.6,0.4459]
[1760189655405,2.5536,3809.9,3808.6,0.4459]
[1760189655603,0.6336,3809.5,3808.6,0.002]
[1760189655911,0.6336,3809.6,3808.6,0.4459]
[1760189656296,0.001,3810.1,3808.6,0.4459]
[1760189656497,0.001,3810.1,3808.8,2.62549884]
[1760189656696,0.001,3810.1,3808.6,0.4459]
[1760189657497,0.6336,3810.0,3808.6,0.4459]
[1760189657692,0.001,3810.1,3808.6,0.4459]
[1760189657693,0.6336,3809.8,3808.6,0.4459]
[1760189657927,3.2587675,3809.3,3808.6,0.4459]
[1760189658095,0.6336,3809.1,3808.6,0.4459]
[1760189658297,2.62536995,3809.0,3808.6,0.002]
[1760189658529,0.6336,3809.6,3808.6,0.002]
[1760189658725,0.001,3810.1,3808.7,0.4439]
[1760189659530,0.6336,3809.5,3808.7,0.4439]
[1760189659739,0.6336,3809.3,3808.7,0.4439]
[1760189660042,0.6336,3809.3,3808.6,0.002]
[1760189660225,0.6336,3809.2,3808.6,0.002]
[1760189660527,2.62552226,3808.8,3808.6,0.002]
[1760189660737,0.6346,3810.1,3808.6,0.002]
[1760189661096,0.001,3810.1,3808.6,0.002]
[1760189661335,0.001,3810.1,3808.7,0.4439]
[1760189661528,0.001,3810.1,3808.8,2.62549489]
[1760189661710,0.001,3810.1,3808.9,0.02625429]
[1760189661912,0.001,3810.1,3809.0,3.06924734]
[1760189662234,0.001,3810.1,3809.1,3.06918926]
[1760189662427,0.001,3810.1,3809.2,2.62520122]
[1760189662731,0.001,3810.1,3809.1,0.4439]
[1760189662933,0.001,3810.1,3810.0,2.62467191]
[1760189663234,0.001,3810.7,3809.3,2.62515422]
[1760189663235,0.001,3810.7,3810.6,2.62425864]
[1760189663451,0.099,3813.1,3811.0,2.62394773]
[1760189663603,0.1309,3813.7,3811.5,2.62361736]
[1760189663802,0.1309,3813.7,3811.1,0.4439]
[1760189663803,2.62271543,3812.9,3811.6,0.4439]
[1760189664005,0.1036,3813.9,3811.6,0.4439]
[1760189664606,2.62242634,3813.3,3811.7,2.62347642]
[1760189664808,0.1036,3813.9,3811.8,0.4439]
[1760189665727,0.6336,3813.5,3811.8,0.4439]
[1760189665928,0.41130261,3813.6,3811.8,0.4439]
[1760189666138,0.6336,3813.5,3811.8,0.4439]
[1760189666434,3.25643777,3812.7,3811.8,0.4439]
[1760189666735,0.6336,3812.7,3811.8,0.4439]
[1760189667102,0.6336,3813.4,3811.8,0.4439]
[1760189668113,0.6336,3813.6,3811.8,0.4439]
[1760189668338,2.5536,3813.5,3811.8,0.4439]
[1760189668518,2.5536,3813.0,3811.8,0.4439]
[1760189668715,3.25621435,3813.0,3811.8,0.4439]
[1760189669028,3.25621435,3813.0,3811.8,3.06733035]
[1760189669029,0.6336,3812.9,3811.8,3.06733035]
[1760189669218,1.92,3814.4,3811.9,0.4439]
[1760189669414,11.321,3822.8,3811.9,0.4439]
[1760189669415,1.92,3813.7,3811.9,0.4439]
[1760189669723,2.62252532,3813.2,3811.9,0.4439]
[1760189669928,0.1045,3814.5,3811.9,3.06724622]
[1760189670101,0.1304,3811.9,3811.2,0.02623731]
[1760189670308,2.72567254,3815.1,3811.6,2.75394452]
[1760189670533,2.72567254,3815.1,3811.7,0.47013501]
[1760189670534,0.1304,3812.2,3811.7,0.47013501]
[1760189670839,0.1304,3812.2,3812.1,2.83942604]
[1760189671134,0.1304,3812.2,3812.1,3.3095583]
[1760189671506,0.1045,3814.6,3812.1,0.6601]
[1760189671706,0.6336,3814.5,3812.2,0.4439]
[1760189672135,0.6336,3814.3,3812.3,2.62303417]
[1760189672347,0.41125079,3814.9,3812.4,0.4439]
[1760189672527,0.1045,3815.1,3812.4,0.4439]
[1760189672528,2.62124367,3815.0,3812.4,0.47013019]
[1760189672705,2.62174088,3814.3,3812.8,2.6227036]
[1760189672911,2.62163475,3814.5,3813.0,2.62260165]
[1760189673152,1.92,3814.4,3813.1,0.4439]
[1760189673357,2.75120683,3816.0,3813.1,0.4439]
[1760189673358,0.1045,3815.9,3813.1,0.4439]
[1760189673521,2.62156181,3814.6,3813.1,3.06638213]
[1760189673707,0.6336,3814.5,3813.2,3.06634257]
[1760189673912,0.6336,3814.5,3813.3,0.4439]
[1760189673913,5.17519282,3814.5,3813.3,0.4439]
[1760189674122,0.1045,3815.9,3813.3,0.4439]
[1760189674327,2.62136634,3814.9,3813.4,2.62227772]
[1760189674534,2.62184072,3814.2,3813.5,0.4439]
[1760189674736,0.6336,3814.8,3812.9,0.4439]
[1760189675530,0.6336,3814.6,3812.6,0.4439]
[1760189675726,2.5536,3813.6,3812.6,0.4439]
[1760189676153,2.62207214,3813.8,3812.6,0.4439]
[1760189676341,0.6336,3813.9,3812.6,0.4439]
[1760189676827,2.62220795,3813.6,3812.6,0.4439]
[1760189677035,0.6336,3814.2,3812.6,0.4439]
[1760189677360,1.92,3814.4,3812.6,0.4439]
[1760189677361,2.5536,3814.4,3812.6,0.4439]
[1760189677558,1.31279651,3817.3,3812.6,0.4439]
[1760189677559,2.5536,3814.5,3812.6,0.4439]
[1760189677747,2.62218803,3813.7,3812.6,0.4439]
[1760189678069,2.62200265,3813.9,3812.6,0.4439]
[1760189678070,2.6222064,3813.6,3812.6,0.4439]
[1760189678275,2.62233919,3813.4,3812.6,0.4439]
[1760189678568,2.62242352,3813.3,3812.6,0.4439]
[1760189678732,2.62247567,3813.2,3812.6,0.4439]
[1760189679056,0.001,3813.8,3812.6,0.4439]
[1760189679933,0.6336,3813.7,3812.6,0.4439]
[1760189680165,0.001,3813.8,3812.6,0.4439]
[1760189680339,0.6336,3813.5,3812.6,0.4439]
[1760189680542,1.92,3813.7,3812.6,0.4439]
[1760189680736,0.6336,3813.4,3812.6,0.4439]
[1760189680931,0.001,3813.8,3812.6,0.4439]
[1760189681141,0.6336,3813.4,3812.6,0.4439]
[1760189681480,2.62251932,3813.2,3812.6,0.4439]
[1760189681775,2.62251932,3813.2,3812.1,0.2162]
[1760189681776,0.1304,3812.6,3812.1,0.6652]
[1760189681933,2.62239041,3813.4,3812.2,0.449]
[1760189682133,0.6336,3813.5,3812.2,0.449]
[1760189682134,0.6336,3813.3,3812.2,0.449]
[1760189682367,0.001,3813.8,3812.2,0.449]
[1760189683379,2.62221247,3813.6,3812.3,2.62303616]
[1760189683536,0.001,3813.8,3812.4,0.4281]
[1760189683870,2.62212549,3813.7,3812.5,2.62294895]
[1760189684082,0.001,3813.8,3812.5,2.62294895]
[1760189684083,0.001,3813.8,3812.6,0.4281]